Cogmind - Beta 13 @@@ ROGUE MODE // 2024.04.29 @ 17:43:20 Player: Rubbe Result: Destroyed by as-14237 with Assembled Heavy Rifle Performance ------------- Evolutions (1) 500 Regions Visited (4) 800 Robots Destroyed (19) 95 Value Destroyed (441) 441 Prototype IDs (1) 20 Alien Tech Used (0) 0 Bonus (126) 126 TOTAL SCORE: 1982 Bonus ------- Follower Combat Kills 126 Cogmind --------- Core Integrity 0/400 Matter 216/300 Energy 29/100 System Corruption 7% Temperature Cool (0) Movement Core (1400) Ox27 Location -9/Mines Parts ------- > --- POWER (1) -------- (None) > --- PROPULSION (4) --- (None) > --- UTILITY (2) ------ Huge Storage Unit > --- WEAPON (2) ------- Improved Medium Laser > --- INVENTORY (25) --- Improved Ion Engine Reinforced Ion Engine Improved Aluminum Leg Improved Aluminum Leg Visual Processing Unit Signal Interpreter Terrain Scanner Spread Laser Improved Medium Laser Improved Medium Laser Improved Medium Laser Faulty Improved Medium Laser Particle Cannon Assault Rifle Peak State ------------ > --- POWER ------------ (None) > --- PROPULSION ------- Aluminum Leg Improved Aluminum Leg Improved Aluminum Leg Improved Aluminum Leg > --- UTILITY ---------- Huge Storage Unit > --- WEAPON ----------- Beam Rifle Improved Medium Laser > --- INVENTORY -------- Improved Ion Engine Reinforced Ion Engine Improved Aluminum Leg Improved Aluminum Leg Improved Aluminum Leg Visual Processing Unit Signal Interpreter Terrain Scanner Spread Laser Improved Medium Laser Improved Medium Laser Improved Medium Laser Improved Medium Laser Improved Medium Laser Particle Cannon Assault Rifle Improved Light Cannon [Rating: 16] Favorites ----------- Power Light Ion Engine Engine Light Ion Engine Propulsion Aluminum Leg Leg Aluminum Leg Utility Small Storage Unit Device Sensor Array Storage Small Storage Unit Weapon Assault Rifle Energy Gun Particle Gun Ballistic Gun Assault Rifle Ballistic Cannon Improved Light Cannon Build | -11 -10 -10 -9 -9 ------- Run | Yrd Mat Min Mat Min Slots Evolved 2 | . . . 2 . Power . | . . . . . Propulsion 2 | . . . 2 . Utility . | . . . . . Weapon . | . . . . . Parts Attached 29 | 6 5 . 11 7 Power 2 | 1 1 . . . Engine 2 | 1 1 . . . Core . | . . . . . Reactor . | . . . . . Propulsion 12 | 2 2 . 4 4 Treads . | . . . . . Leg 12 | 2 2 . 4 4 Wheel . | . . . . . Hover . | . . . . . Flight . | . . . . . Utility 5 | 1 2 . 2 . Device 3 | . 2 . 1 . Storage 2 | 1 . . 1 . Processor . | . . . . . Hackware . | . . . . . Protection . | . . . . . Artifact . | . . . . . Weapon 10 | 2 . . 5 3 Energy Gun 5 | . . . 3 2 Energy Cannon . | . . . . . Ballistic Gun 3 | 2 . . 1 . Ballistic Cannon 2 | . . . 1 1 Launcher . | . . . . . Special Weapon . | . . . . . Impact Weapon . | . . . . . Slashing Weapon . | . . . . . Piercing Weapon . | . . . . . Special Melee Weapon . | . . . . . Unidentified Prototypes 1 | . . . 1 . Parts Lost 14 | . . . . 14 Power 1 | . . . . 1 Propulsion 8 | . . . . 8 Utility 1 | . . . . 1 Weapon 4 | . . . . 4 Highest Loss Streak 14 | . . . . 14 To Critical Strikes . | . . . . . Average Slot Usage (%) 99 | . 99 100 99 74 Engine 11 | . 14 14 11 5 Leg 38 | . 28 28 43 35 Device 11 | . 13 14 11 5 Storage 11 | . 14 14 11 11 Energy Gun 5 | . . . 8 11 Ballistic Gun 15 | . 28 28 10 5 Ballistic Cannon 2 | . . . 3 . Naked Turns . | . . . . . Heaviest Build 91 | 12 14 13 91 90 Greatest Support 40 | 20 20 20 40 40 Greatest Overweight (x) 4 | . 4 . 2 2 Average Overweight (x) . | . . . . 2 Largest Inventory Capacity 25 | 8 8 8 25 25 Average Capacity 12 | 7 8 8 18 25 Most Carried 21 | 5 8 8 21 21 Average Carried 6 | 2 5 8 10 18 Final Capacity 25 | 8 8 8 25 25 Final Carried 21 | 2 8 8 21 14 Class Distribution -------------------- 55% | Mutant 44% | Scavenger-Mutant Dominant Class ---------------- Mutant | -10/Materials Mutant | -10/Mines Scavenger-Mutant | -9/Materials Scavenger-Mutant | -9/Mines Resources | -11 -10 -10 -9 -9 ----------- Run | Yrd Mat Min Mat Min Matter Collected 588 | 244 141 . 203 . Remotely . | . . . . . Salvage Created 515 | . 190 . 325 . Parts 42 | . 15 . 27 . Haulers Intercepted . | . . . . . Recyclers Shooed 1 | . 1 . . . Parts Field Recycled . | . . . . . Retrieved Matter . | . . . . . Parts Self-Destructed . | . . . . . Prevented . | . . . . . Kills | -11 -10 -10 -9 -9 ------- Run | Yrd Mat Min Mat Min Combat Hostiles Destroyed 17 | . 6 . 11 . Guns 14 | . 6 . 8 . Cannons 3 | . . . 3 . Classes Destroyed 5 | . 3 . 2 . Watcher 2 | . 1 . 1 . Swarmer 8 | . 3 . 5 . Grunt 7 | . 3 . 4 . Brawler 1 | . . . 1 . Sentry 1 | . . . 1 . Best Kill Streak 4 | . 3 . 4 . Combat Bots Only 4 | . 3 . 4 . Max Kills in Single Turn 2 | . 1 . 2 . Gunslinging . | . . . . . Exploded . | . . . . . Melee . | . . . . . Uniques/NPCs Destroyed . | . . . . . Combat | -11 -10 -10 -9 -9 -------- Run | Yrd Mat Min Mat Min Hostile Shots Fired 184 | . 35 . 59 90 Missed 46 | . 9 . 17 20 Damage Taken 2093 | . 253 . 419 1421 Core 452 | . 52 . 30 370 Absorbed by Shields . | . . . . . Core Remaining (%) 89 | 100 . 79 . . Volleys Fired 63 | . 24 . 34 5 Largest 2 | . 2 . 2 2 Hottest 112 | . 40 . 104 112 Shots Fired 125 | . 48 . 68 9 Gun 116 | . 48 . 59 9 Cannon 9 | . . . 9 . Launcher . | . . . . . Special . | . . . . . Kinetic 84 | . 48 . 35 1 Thermal 41 | . . . 33 8 Explosive . | . . . . . Electromagnetic . | . . . . . Robot Hit Streak 9 | . 4 . 9 4 Robot Miss Streak 4 | . 4 . 3 2 Penetration Max . | . . . . . Secondary Targets 4 | . . . 4 . Max Gunslinging Chain 1 | . . . 1 . Shots Hit Robots 74 | . 25 . 44 5 Core Hits 28 | . 10 . 17 1 Critical Kills 1 | . . . 1 . Critical Parts Destroyed . | . . . . . Critical Strikes 1 | . . . 1 . Destroy 1 | . . . 1 . Melee Attacks . | . . . . . Impact . | . . . . . Slashing . | . . . . . Piercing . | . . . . . Sneak Attacks . | . . . . . Combat Hostiles . | . . . . . Follow-up Attacks . | . . . . . Damage Inflicted 1116 | . 341 . 691 84 Guns 967 | . 341 . 545 81 Cannons 120 | . . . 120 . Explosions . | . . . . . Melee . | . . . . . Ramming 29 | . . . 26 3 Kinetic 663 | . 341 . 322 . Thermal 424 | . . . 343 81 Explosive . | . . . . . Electromagnetic . | . . . . . Impact . | . . . . . Slashing . | . . . . . Piercing . | . . . . . Highest Corruption 7 | . . . . 7 Average Corruption 5 | . . . . 5 Corruption Purged . | . . . . . Corruption Blocked . | . . . . . Overload Shots . | . . . . . Overflow Damage . | . . . . . Projectiles . | . . . . . Explosions . | . . . . . Melee . | . . . . . Knockbacks 3 | . . . 3 . Impact 1 | . . . 1 . Kinetic 2 | . . . 2 . Secondary . | . . . . . Self-Inflicted Damage . | . . . . . Shots . | . . . . . Rammed . | . . . . . Targets Rammed 3 | . . . 2 1 Kicked 3 | . . . 2 1 Crushed . | . . . . . Highest Temperature 210 | . . . 210 121 Average Temperature 69 | . . . 71 56 Received Heat Transfer 301 | . 96 . 105 100 Siege Activations . | . . . . . Robots Corrupted . | . . . . . Combat Hostiles . | . . . . . Parts Fried . | . . . . . Impact Corruptions . | . . . . . Robots Melted . | . . . . . Combat Hostiles . | . . . . . Parts Melted 1 | . . . 1 . Heat Transferred 999 | . . . 814 185 Parts Sabotaged . | . . . . . Parts Stolen . | . . . . . Parts Stripped . | . . . . . Power Chain Reactions . | . . . . . Alert | -11 -10 -10 -9 -9 ------- Run | Yrd Mat Min Mat Min Peak Influence 332 | . 207 80 332 . Initial 80 | . . 80 31 . Average 90 | . 65 80 176 . Maximum Alert Level 1 | . 1 . 1 . Low Security (%) 84 | 100 94 100 64 100 Level 1 15 | . 5 . 35 . Level 2 . | . . . . . Level 3 . | . . . . . Level 4 . | . . . . . Level 5 . | . . . . . High Security . | . . . . . Max Security . | . . . . . Squads Dispatched 2 | . 1 . 1 . Investigation . | . . . . . Extermination . | . . . . . Reinforcement 2 | . 1 . 1 . Assault . | . . . . . Garrison . | . . . . . Intercept . | . . . . . Searches Triggered . | . . . . . Construction Impeded . | . . . . . Haulers Reinforced . | . . . . . Active Scanning Responses . | . . . . . Cargo Convoy Interrupts . | . . . . . Stealth | -11 -10 -10 -9 -9 --------- Run | Yrd Mat Min Mat Min Distress Signals 2 | . 1 . 1 . Communications Jammed . | . . . . . Distress Signals . | . . . . . Times Spotted 43 | . 10 . 18 15 Peak Tracking Total 12 | . 5 . 6 12 Tactical Retreats 3 | . 2 . 1 . Traps | -11 -10 -10 -9 -9 ------- Run | Yrd Mat Min Mat Min Traps Triggered . | . . . . . Indirectly . | . . . . . Trap Hack Attempts . | . . . . . Triggered . | . . . . . Disarmed . | . . . . . Reprogrammed . | . . . . . Reused . | . . . . . Traps Extracted . | . . . . . Installed . | . . . . . Triggered . | . . . . . Machines | -11 -10 -10 -9 -9 ---------- Run | Yrd Mat Min Mat Min Machines Disabled 1 | . . . 1 . Max in Single Turn 1 | . . . 1 . Machines Repaired . | . . . . . Machines Dismantled . | . . . . . Machines Sabotaged . | . . . . . Overloaded Fab Kills . | . . . . . Hacking | -11 -10 -10 -9 -9 --------- Run | Yrd Mat Min Mat Min Machines Accessed 8 | . 2 . 6 . Terminals 4 | . . . 4 . Fabricators . | . . . . . Repair Stations 1 | . . . 1 . Recycling Units 3 | . 2 . 1 . Scanalyzers . | . . . . . Garrison Access . | . . . . . Total Hacks 15 | . 4 . 11 . Successful 12 | . 3 . 9 . Failed 3 | . 1 . 2 . Catastrophic 1 | . . . 1 . Database Lockouts . | . . . . . Manual 3 | . . . 3 . Terminals 7 | . . . 7 . Fabricators . | . . . . . Repair Stations 1 | . . . 1 . Recycling Units 7 | . 4 . 3 . Scanalyzers . | . . . . . Garrison Access . | . . . . . Terminal Hacks 6 | . . . 6 . Robot Analysis 2 | . . . 2 . Alert Level 1 | . . . 1 . Unreport Threat 1 | . . . 1 . Dispatch Records 1 | . . . 1 . Hauler Manifests 1 | . . . 1 . Fabricator Hacks . | . . . . . Repair Station Hacks 1 | . . . 1 . Scan Component 1 | . . . 1 . Recycling Unit Hacks 5 | . 3 . 2 . Report Inventory 3 | . 2 . 1 . Retrieve Components 2 | . 1 . 1 . Scanalyzer . | . . . . . Garrison Access Hacks . | . . . . . Unauthorized Hacks . | . . . . . Terminals . | . . . . . Fabricators . | . . . . . Repair Stations . | . . . . . Recycling Units . | . . . . . Scanalyzers . | . . . . . Garrison Access . | . . . . . Data Cores Recovered . | . . . . . Used . | . . . . . Hacking Detections 7 | . 2 . 5 . Full Trace Events . | . . . . . Feedback Events . | . . . . . Feedback Blocked . | . . . . . Robot Schematics Acquired . | . . . . . Robots Built . | . . . . . Authchips . | . . . . . Time . | . . . . . Total Robot Build Rating . | . . . . . Part Schematics Acquired . | . . . . . Parts Built . | . . . . . Authchips . | . . . . . Time . | . . . . . Total Part Build Rating . | . . . . . Parts Repaired . | . . . . . Time . | . . . . . Parts Recycled . | . . . . . Recycled Matter . | . . . . . Retrieved Matter . | . . . . . Retrieved Components 13 | . 6 . 7 . Parts Scanalyzed . | . . . . . Part Schematics Acquired . | . . . . . Parts Damaged . | . . . . . Bothacking | -11 -10 -10 -9 -9 ------------ Run | Yrd Mat Min Mat Min Used RIF Installer . | . . . . . Robots Hacked . | . . . . . Non-combat . | . . . . . Combat . | . . . . . Robot Hacks Applied . | . . . . . Relay Couplers Released . | . . . . . Fabnet Peak Effective % . | . . . . . Robots Rewired . | . . . . . Allies Hacked . | . . . . . Hacks Repelled . | . . . . . Allies | -11 -10 -10 -9 -9 -------- Run | Yrd Mat Min Mat Min Total Allies 2 | . . 2 . . Largest Group 2 | . . 2 1 . Highest-Rated Group 49 | . . 49 31 . Highest-Rated Ally 31 | . . 31 31 . Total Orders . | . . . . . Ally Attacks 12 | . . . 12 . Total Damage 193 | . . . 193 . Kills 4 | . . . 4 . Allies Corrupted . | . . . . . Allies Melted . | . . . . . Intel | -11 -10 -10 -9 -9 ------- Run | Yrd Mat Min Mat Min Robot Analysis Total 2 | . . . 2 . Derelict Logs Recovered . | . . . . . Drone Launches . | . . . . . Drone Recoveries . | . . . . . Exploration | -11 -10 -10 -9 -9 ------------- Run | Yrd Mat Min Mat Min Turns Passed 2318 | 789 334 143 1003 49 Spaces Moved 923 | 145 201 120 448 9 Core 21 | 19 2 . . . Treads . | . . . . . Legs 902 | 126 199 120 448 9 Wheels . | . . . . . Hover . | . . . . . Flight . | . . . . . Fastest Speed 50 | 50 120 120 120 260 Average Speed 150 | 110 121 120 182 260 Slowest Speed 260 | 120 250 120 260 260 Overloaded Moves . | . . . . . Propulsion Burnouts . | . . . . . Robots Hopped . | . . . . . Cave-ins Triggered . | . . . . . Exploration Rate (%) 25 | 14 38 33 34 8 Regions Visited 4 Branch Regions 2 Pre-discovered Areas . | . . . . . Known Exits Taken . | . . . . . Unknown Exits Taken 4 | 1 1 1 1 . Scrap Searched . | . . . . . Spaces Dug . | . . . . . Terrain Destroyed . | . . . . . Melee . | . . . . . Projectile . | . . . . . AOE . | . . . . . Terrain Rammed . | . . . . . Walls Destroyed . | . . . . . Machines Disabled . | . . . . . Actions | -11 -10 -10 -9 -9 --------- Run | Yrd Mat Min Mat Min Total 1727 | 773 244 119 569 22 Wait 653 | 615 . . 38 . Move 919 | 144 200 119 447 9 Hop . | . . . . . Pick Up 45 | 8 11 . 26 . Fast Attach . | . . . . . Attach 21 | 6 3 . 5 7 Detach . | . . . . . Swap 8 | . 2 . 6 . Drop 15 | . 4 . 11 . Fire 63 | . 24 . 34 5 Melee . | . . . . . Ram . | . . . . . Kick 3 | . . . 2 1 Crush . | . . . . . Escape Stasis . | . . . . . Rewire . | . . . . . Trap . | . . . . . Miscellaneous . | . . . . . Route ------- -11/Scrapyard -10/Materials -10/Mines -9/Materials -9/Mines History --------- Turn | Location | Event 6 | -11/Scrapyard | Discovered new exit (range 16) 790 | -11/Scrapyard | Entered Materials 791 | -10/Materials | Build established: Mutant 1106 | -10/Materials | Discovered new exit (range 11) 1124 | -10/Materials | Entered Mines 1253 | -10/Mines | Discovered new exit (range 9) 1267 | -10/Mines | Entered Materials 1267 | -9/Materials | Accompanied by 1 ally 1267 | -9/Materials | Evolved 2 slots: Propulsion x2 1272 | -9/Materials | Led the pair of lost Derelicts to an unsafe place 1571 | -9/Materials | Build established: Scavenger-Mutant 2210 | -9/Materials | Discovered new exit (range 16) 2270 | -9/Materials | Entered Mines 2271 | -9/Mines | Assembled infested the area 2309 | -9/Mines | Core integrity fell below 50% 2317 | -9/Mines | Core integrity fell below 20% 2319 | -9/Mines | Destroyed by as-14237 with Assembled Heavy Rifle Last Messages --------------- Aluminum Leg destroyed. Sensor Array destroyed. System corrupted by crushing effect (+2). Laser Drill disabled. Aluminum Leg destroyed. Hvy. Assault Rifle destroyed. Lgt. Ion Engine destroyed. System corrupted by crushing effect (+3). System corrupted by crushing effect (+2). Aluminum Leg destroyed. Knocked back. Imp. Medium Laser destroyed. Imp. Aluminum Leg destroyed. as-38893 destroyed. Imp. Aluminum Leg destroyed. Beam Rifle destroyed. Kicked as-44777. as-44777 suffers critical hit (Destroy). Imp. Aluminum Leg destroyed. Imp. Light Cannon destroyed. Map ----- +----------------------------------------------------+ | | | | | | | | | | | | | | | | | | | | | | | | | | | | | | | | | | | | | | | | | | | ?????????????????????????????????????????????????? | | ?????????????????????????????????????????????????? | | ?????????????##############??????????????????????? | | ?????????? aaaa#??????????????????????? | | ?????????? %*= = aa@#??????????????????????? | | ??????????????"""%"""%""aa#??????????????????????? | | ??????????????"""="""*"" a#??????????????????????? | | ???????????"" """ """=""" #??????????????????????? | | ?????????? *% a #??????????????????????? | | ??????????????""" """[ #??????????????????????? | | ??????????????""" """ #??????????????????????? | | ??????????""" """ """ #??????????????????????? | | ???????? #??????????????????????? | | ???????? #??????????????????????? | | ??????????########## #####??????????????????????? | | ???????????????????# ???????????????????????????? | | ???????????????????# ???????????????????????????? | | ???????????????????# ????????????????????????????? | | ???????????????????# ????????????????????????????? | | ??????????????????? ?????????????????????????????? | | ?????????????????????????????????????????????????? | | ?????????????????????????????????????????????????? | | ?????????????????????????????????????????????????? | | ?????????????????????????????????????????????????? | | ?????????????????????????????????????????????????? | | ?????????????????????????????????????????????????? | | ?????????????????????????????????????????????????? | | ?????????????????????????????????????????????????? | | ?????????????????????????????????????????????????? | +----------------------------------------------------+ Best States ------------- Heat Dissipation 28 Energy Generation 10 Energy Capacity 125 Matter Stores 300 Matter Capacity 300 Sight Range 16 Robot Scan Range 14 Terrain Scan Range 14 Terrain Scan Density 10 ECM Strength 1 Evasion (%) 55 Item Schematics ----------------- None Robot Schematics ------------------ None Fabricated ------------ Nothing Alien Tech Used ----------------- None Achievements -------------- None Challenges ------------ None Game ------ Seed CloakingFlightNeutralizer Manual? 0 Play Time 00:20:08 Cumulative 3.6 hours Start 2024.04.29 @ 17:24:31 End 2024.04.29 @ 17:43:20 Sessions 1 Manual Loads 0 Difficulty Rogue Special Mode None Game No. 12 Rogue 12 Adventurer 0 Explorer 0 Win Type - Total 0 Types 0/0/0/0/0/0/0/0/0 Lore% 6 Gallery% 11 Achievement% 10 Wizard Run 0 Options --------- Layout 1 ASCII 0 Keyboard 0 Movement Mouse Keybinds 0 Fullscreen 1 Font 24/Smallcaps Map View 50x35 Zoom Use 0% Tactical HUD 0 Map Filters NONE Filters NONE Steam 1 RUN: 56168467-8f5c-42df-813c-e5cfbd413044